bitfinex-derivatives/quotes_BTCF0:USTF0_20250904
["timestamp","ask_amount","ask_price","bid_price","bid_amount"]
[1756999981903,1.04119507,109470.0,109460.0,0.90668]
[1756999982208,1.04119507,109470.0,109460.0,0.90664]
[1756999983803,1.04119507,109470.0,109460.0,0.0056]
[1756999984107,1.04119507,109470.0,109460.0,0.90652]
[1756999984309,1.04119507,109470.0,109460.0,0.0056]
[1756999984503,1.04119507,109470.0,109460.0,0.90648]
[1756999986510,1.04119507,109470.0,109460.0,0.9064]
[1756999986710,1.04119507,109470.0,109460.0,0.0056]
[1756999986912,1.04119507,109470.0,109460.0,0.90632]
[1756999988606,1.04119507,109470.0,109460.0,0.90624]
[1756999988798,1.04119507,109470.0,109460.0,0.0056]
[1756999989004,1.04119507,109470.0,109460.0,0.9062]
[1756999989611,1.38223354,109470.0,109460.0,0.0056]
[1756999989815,1.74303354,109470.0,109460.0,0.90612]
[1756999990112,1.99303354,109470.0,109460.0,0.90612]
[1756999990707,1.99303354,109470.0,109460.0,0.0056]
[1756999990912,1.99303354,109470.0,109460.0,0.90604]
[1756999992318,1.65199507,109470.0,109460.0,0.90604]
[1756999995816,1.40199507,109470.0,109460.0,0.90604]
[1756999999119,1.40199507,109470.0,109460.0,1.15604]
[1756999999613,1.42486507,109470.0,109460.0,1.15604]
[1757000000114,1.46270507,109470.0,109460.0,0.28885]
[1757000000316,1.46270507,109470.0,109460.0,1.18869]
[1757000000517,1.46270507,109470.0,109460.0,0.90544]
[1757000000716,1.80374354,109470.0,109460.0,0.90544]
[1757000001418,1.80374354,109470.0,109460.0,0.9054]
[1757000001622,0.78062813,109470.0,109460.0,0.9054]
[1757000001818,1.46270507,109470.0,109460.0,0.90532]
[1757000003027,0.02287,109460.0,109450.0,0.89978]
[1757000003218,1.78462541,109460.0,109450.0,0.7944262]
[1757000004115,1.78462541,109460.0,109450.0,0.7964262]
[1757000005728,1.78462541,109460.0,109450.0,0.7984262]
[1757000006320,1.78462541,109460.0,109450.0,0.8316762]
[1757000006824,1.78462541,109460.0,109450.0,0.7984262]
[1757000007125,1.44358694,109460.0,109450.0,1.0816762]
[1757000007515,1.78462541,109460.0,109450.0,1.0816762]
[1757000007720,1.78462541,109460.0,109450.0,1.18673]
[1757000009030,0.76151,109460.0,109450.0,1.18673]
[1757000009330,1.44358694,109460.0,109450.0,1.18673]
[1757000010316,1.78462541,109460.0,109450.0,1.18673]
[1757000010724,1.78462541,109460.0,109450.0,1.96015974]
[1757000010725,0.34,109460.0,109450.0,1.96015974]
[1757000011027,0.34,109460.0,109450.0,2.07128301]
[1757000011526,0.34,109460.0,109450.0,2.07108301]
[1757000012114,0.32771,109460.0,109450.0,1.73004454]
[1757000012329,0.32771,109460.0,109450.0,2.07108301]
[1757000013521,0.32771,109460.0,109450.0,1.17180301]
[1757000013924,0.32771,109460.0,109450.0,1.89432454]
[1757000014122,0.66874847,109460.0,109450.0,1.33624301]
[1757000014431,0.66874847,109460.0,109450.0,2.23536301]
[1757000014632,0.32771,109460.0,109450.0,2.23536301]
[1757000014931,0.66874847,109460.0,109450.0,2.23536301]
[1757000015126,0.32771,109460.0,109450.0,2.23536301]
[1757000018527,0.66874847,109460.0,109450.0,1.33624301]
[1757000018725,0.66874847,109460.0,109450.0,2.23512301]
[1757000018934,0.32771,109460.0,109450.0,2.23512301]
[1757000020633,0.31922,109460.0,109450.0,2.57616148]
[1757000021834,0.31922,109460.0,109450.0,2.71384226]
[1757000022037,0.31922,109460.0,109450.0,3.28384226]
[1757000022536,0.31922,109460.0,109450.0,3.43524226]
[1757000022738,0.31922,109460.0,109450.0,3.28384226]
[1757000022937,0.31922,109460.0,109450.0,3.40470798]
[1757000023642,0.06071,109510.0,109490.0,0.0913193]
[1757000023833,0.7113807,109510.0,109500.0,0.89856]
[1757000025036,0.7113807,109510.0,109500.0,0.97103505]
[1757000025237,0.7113807,109510.0,109500.0,0.07247505]
[1757000025428,0.7133807,109510.0,109500.0,0.8984]
[1757000025628,0.7173807,109510.0,109500.0,0.8984]
[1757000026631,0.7163807,109510.0,109500.0,0.8984]
[1757000026826,0.7163807,109510.0,109500.0,1.2592]
[1757000028350,0.72572956,109510.0,109500.0,1.2592]
[1757000029351,0.38505886,109510.0,109500.0,1.2592]
[1757000029854,0.72572956,109510.0,109500.0,1.33350841]
[1757000030550,0.72572956,109510.0,109500.0,0.43510841]
[1757000030752,0.72572956,109510.0,109500.0,1.33310841]
[1757000031051,0.72572956,109510.0,109500.0,1.33302841]
[1757000031552,0.72572956,109510.0,109500.0,0.43510841]
[1757000031750,0.72572956,109510.0,109500.0,1.33294841]
[1757000032645,0.72572956,109510.0,109500.0,0.07430841]
[1757000032852,1.67720026,109510.0,109500.0,0.89784]
[1757000033050,0.97572956,109510.0,109500.0,0.89784]
[1757000034653,0.97572956,109510.0,109500.0,0.97215571]
[1757000038957,0.97572956,109510.0,109500.0,0.07431571]
[1757000039158,0.72572956,109510.0,109500.0,0.89736]
[1757000039354,0.72572956,109510.0,109500.0,0.9713251]
[1757000042054,0.34721886,109510.0,109500.0,0.3239651]
[1757000042261,0.72823956,109510.0,109500.0,0.9710851]
[1757000042451,0.72823956,109510.0,109500.0,0.9710451]
[1757000045050,0.72823956,109510.0,109500.0,0.0739651]
[1757000045251,1.08903956,109510.0,109500.0,0.89696]
[1757000045650,0.06282,109500.0,109490.0,0.3609]
[1757000045852,0.7534907,109500.0,109490.0,1.25772]
[1757000046253,0.37247,109500.0,109490.0,1.93971]
[1757000046648,0.35,109500.0,109490.0,1.93971]
[1757000046856,0.352,109500.0,109490.0,1.93971]
[1757000047750,0.353,109500.0,109490.0,1.93971]
[1757000047951,0.353,109500.0,109490.0,1.5990393]
[1757000048260,0.353,109500.0,109490.0,1.93971]
[1757000048456,0.353,109500.0,109490.0,2.01401059]
[1757000048647,0.37547,109500.0,109490.0,1.58202059]
[1757000048853,1.0971614,109500.0,109490.0,1.33182059]
[1757000049251,0.7564907,109500.0,109490.0,1.33182059]
[1757000051358,0.41582,109500.0,109490.0,1.33182059]
[1757000051561,0.7564907,109500.0,109490.0,1.42314009]
[1757000051857,0.7161407,109500.0,109490.0,1.42314009]
[1757000052853,0.7161407,109500.0,109490.0,1.33182059]
[1757000055049,0.353,109500.0,109490.0,1.67314009]
[1757000056652,0.353,109500.0,109490.0,2.10513916]
[1757000057162,0.353,109500.0,109490.0,1.76446846]
[1757000057360,0.353,109500.0,109490.0,2.10513916]
[1757000059059,0.353,109500.0,109490.0,2.23993916]
[1757000059650,0.353,109500.0,109490.0,1.89926846]
[1757000059855,0.353,109500.0,109490.0,2.23993916]
[1757000060055,0.353,109500.0,109490.0,2.37652549]
[1757000060565,0.353,109500.0,109490.0,2.37592549]
[1757000063056,0.353,109500.0,109490.0,2.82592549]
[1757000063464,0.353,109500.0,109490.0,2.48525479]
[1757000063465,0.123,109500.0,109490.0,2.48525479]
[1757000063666,0.353,109500.0,109490.0,2.82592549]
[1757000063967,0.103,109500.0,109490.0,2.48525479]
[1757000064171,0.333,109500.0,109490.0,2.82592549]
[1757000064364,0.333,109500.0,109490.0,1.92980549]
[1757000064565,0.333,109500.0,109490.0,1.26980549]
[1757000064766,0.333,109500.0,109490.0,1.82497479]
[1757000064967,0.333,109500.0,109490.0,1.26980549]
[1757000065163,0.333,109500.0,109490.0,2.16564549]
[1757000065467,0.333,109500.0,109490.0,2.62564549]
[1757000065769,0.333,109500.0,109490.0,2.87564549]
[1757000067472,0.333,109500.0,109490.0,3.02704549]
[1757000068271,0.333,109500.0,109490.0,3.36771619]
[1757000069175,0.003,109500.0,109490.0,3.36771619]
[1757000069371,0.02247,109540.0,109530.0,0.091286]
[1757000069575,0.36247,109540.0,109530.0,1.6883567]
[1757000070167,0.36247,109540.0,109530.0,1.5970707]
[1757000070369,0.36247,109540.0,109530.0,0.3608]
[1757000070568,0.40051,109540.0,109530.0,1.25632]
[1757000070765,0.36647,109540.0,109530.0,1.61712]
[1757000071966,0.37247,109540.0,109530.0,1.61712]
[1757000072368,0.7511807,109540.0,109530.0,0.7216]
[1757000072574,1.01015501,109540.0,109530.0,0.3608]
[1757000072977,1.01015501,109540.0,109530.0,1.2562]
[1757000073274,1.35082571,109540.0,109530.0,1.2562]
[1757000073478,1.01015501,109540.0,109530.0,1.2562]
[1757000074168,1.01015501,109540.0,109530.0,0.8954]
[1757000074365,1.01015501,109540.0,109520.0,2.12542]
[1757000074568,0.7039314,109530.0,109520.0,2.12542]
[1757000074864,1.2539314,109530.0,109520.0,3.0206]
[1757000075068,1.2539314,109530.0,109520.0,2.12532]
[1757000075264,1.2539314,109530.0,109520.0,3.0206]
[1757000075477,0.99544305,109530.0,109520.0,3.0206]
[1757000076276,1.35624305,109530.0,109520.0,1.76452]
[1757000076472,1.35624305,109530.0,109520.0,2.65972]
[1757000076771,1.36024305,109530.0,109520.0,2.65972]
[1757000077481,1.36324305,109530.0,109520.0,2.65972]
[1757000078284,1.11324305,109530.0,109520.0,2.65972]
[1757000078780,1.36324305,109530.0,109520.0,2.65972]
[1757000078980,0.79048305,109530.0,109520.0,0.8952]
[1757000081171,0.79048305,109530.0,109510.0,0.3609]
[1757000081376,0.48348305,109520.0,109510.0,0.3609]
[1757000081581,0.79348305,109520.0,109510.0,1.2558]
[1757000081779,0.02259,109510.0,109500.0,0.3609]
[1757000081980,0.02259,109510.0,109500.0,0.3608]
[1757000081981,0.79348305,109510.0,109500.0,0.3608]
[1757000082585,0.79348305,109510.0,109500.0,1.25576]
[1757000083180,0.79448305,109510.0,109500.0,1.25576]
[1757000083490,0.79747472,109510.0,109500.0,1.25576]
[1757000086881,0.79747472,109510.0,109500.0,0.89496]
[1757000087882,0.79747472,109510.0,109490.0,2.19964059]
[1757000088088,0.44843472,109500.0,109490.0,2.19964059]
[1757000088383,0.79843472,109500.0,109490.0,2.19954059]
[1757000088584,0.79843472,109500.0,109490.0,3.09422059]
[1757000088891,0.79843472,109500.0,109490.0,2.73342059]
[1757000089190,0.79843472,109500.0,109490.0,2.73442059]
[1757000089788,0.79843472,109500.0,109490.0,2.73542059]
[1757000089984,0.79843472,109500.0,109490.0,1.76644]
[1757000090190,0.79843472,109500.0,109490.0,2.66112]
[1757000090877,0.37259,109500.0,109490.0,2.66112]
[1757000091086,0.79843472,109500.0,109490.0,2.66112]
[1757000093182,0.37259,109500.0,109490.0,2.66112]
[1757000093382,0.79843472,109500.0,109490.0,3.02192]
[1757000093887,0.79843472,109500.0,109490.0,2.66112]
[1757000095590,1.05402852,109500.0,109490.0,2.66112]
[1757000097387,1.05402852,109500.0,109490.0,0.89668]
[1757000097588,1.43366778,109500.0,109490.0,0.89668]
[1757000097796,1.79446778,109500.0,109490.0,0.89668]
[1757000099285,2.04446778,109500.0,109490.0,0.002]
[1757000099485,1.79446778,109500.0,109490.0,0.89608]
[1757000099684,2.16446778,109500.0,109490.0,0.89608]
[1757000099893,2.14446778,109500.0,109490.0,0.89608]
[1757000100686,2.15446778,109500.0,109490.0,0.89608]
[1757000101293,1.79446778,109500.0,109490.0,0.89608]
[1757000101595,1.45374852,109500.0,109490.0,0.89608]
[1757000101796,1.79446778,109500.0,109490.0,0.89608]
[1757000103996,1.45374852,109500.0,109490.0,0.89608]
[1757000104299,1.79446778,109500.0,109490.0,0.89608]
[1757000105787,1.79446778,109500.0,109490.0,0.002]
[1757000105991,1.79446778,109500.0,109490.0,0.89572]
[1757000106603,1.79446778,109500.0,109490.0,0.002]
[1757000106897,1.79446778,109500.0,109450.0,2.12574]
[1757000106898,0.0613,109460.0,109450.0,2.39094]
[1757000107091,0.4113,109460.0,109450.0,3.2066]
[1757000107299,1.09273852,109460.0,109450.0,3.34252]
[1757000107701,1.09273852,109460.0,109450.0,3.07732]
[1757000108397,1.09273852,109460.0,109450.0,3.07932]
[1757000109201,1.09273852,109460.0,109450.0,3.08232]
[1757000109902,0.4113,109460.0,109450.0,3.33232]
[1757000110102,1.09273852,109460.0,109450.0,3.1964]
[1757000110698,0.42066471,109460.0,109450.0,3.1964]
[1757000110898,1.10210323,109460.0,109450.0,3.26974846]
[1757000111794,1.10210323,109460.0,109450.0,3.34734846]
[1757000111995,1.10210323,109460.0,109450.0,3.09734846]
[1757000112798,1.44282249,109460.0,109450.0,0.005]
[1757000112999,2.39362249,109460.0,109450.0,0.89828]
[1757000113201,2.05362249,109460.0,109450.0,0.89828]
[1757000113703,2.37362249,109460.0,109450.0,0.89828]
[1757000113898,2.05362249,109460.0,109450.0,0.89828]
[1757000114107,2.37362249,109460.0,109450.0,0.89828]
[1757000114502,2.05362249,109460.0,109450.0,0.89828]
[1757000115003,2.39362249,109460.0,109450.0,0.89628]
[1757000115505,1.78778256,109460.0,109450.0,0.003]
[1757000116202,0.0613,109450.0,109440.0,0.89324]
[1757000116404,0.83761785,109450.0,109440.0,0.89324]
[1757000117603,0.83761785,109450.0,109440.0,0.89424]
[1757000117804,0.83761785,109450.0,109440.0,0.89524]
[1757000119713,0.4113,109450.0,109440.0,0.89524]
[1757000119909,0.83761785,109450.0,109440.0,0.89524]
[1757000122709,0.4113,109450.0,109440.0,1.14524]
[1757000123015,0.83761785,109450.0,109440.0,1.14524]
[1757000123408,0.4113,109450.0,109440.0,1.50604]
[1757000123614,0.83761785,109450.0,109440.0,1.50604]
[1757000123811,0.4113,109450.0,109440.0,1.50604]
[1757000124010,0.83761785,109450.0,109440.0,1.50604]
[1757000124211,0.4113,109450.0,109440.0,1.50604]
[1757000124411,0.83761785,109450.0,109440.0,1.50604]
[1757000124709,0.4113,109450.0,109440.0,1.50604]
[1757000124915,0.83761785,109450.0,109440.0,1.50604]
[1757000127014,0.83761785,109450.0,109440.0,0.6128]
[1757000127317,0.83761785,109450.0,109440.0,1.50512]
[1757000128916,0.37238,109450.0,109440.0,1.50512]
[1757000129313,0.79869785,109450.0,109440.0,1.50512]
[1757000129615,0.79869785,109450.0,109440.0,1.77032]
[1757000130114,0.37238,109450.0,109440.0,1.77032]
[1757000130513,0.79869785,109450.0,109440.0,1.77032]
[1757000131117,0.37238,109450.0,109440.0,1.8616812]
[1757000131313,0.79869785,109450.0,109440.0,1.77032]
[1757000131514,0.37238,109450.0,109440.0,1.77032]
[1757000132020,0.37238,109450.0,109440.0,1.8616811]
[1757000132914,0.35,109450.0,109440.0,1.77032]
[1757000134020,0.35,109450.0,109440.0,1.8616811]
[1757000134716,0.35,109450.0,109440.0,1.77032]
[1757000135218,0.41036,109450.0,109440.0,0.878]
[1757000135416,0.83667785,109450.0,109440.0,1.51968]
[1757000135617,0.83667785,109450.0,109440.0,1.25448]
[1757000136419,0.83667785,109450.0,109440.0,1.2544]
[1757000137418,1.09237118,109450.0,109440.0,0.3628]
[1757000137619,1.09237118,109450.0,109440.0,1.2544]
[1757000138123,1.09237118,109450.0,109440.0,0.3628]
[1757000138322,1.09237118,109450.0,109440.0,1.25428]
[1757000138929,1.09237118,109450.0,109440.0,0.3628]
[1757000139131,1.34237118,109450.0,109440.0,1.2542]
[1757000139726,0.75136559,109450.0,109440.0,1.2542]
[1757000140824,0.71364559,109450.0,109440.0,1.59520559]
[1757000141226,0.71364559,109450.0,109440.0,1.2542]
[1757000144324,0.37264,109450.0,109440.0,1.2542]
[1757000144530,0.71364559,109450.0,109440.0,1.2542]
[1757000145521,0.37264,109450.0,109440.0,1.5042]
[1757000146021,0.35,109450.0,109440.0,2.07335685]
[1757000146723,0.35,109450.0,109440.0,2.16472694]
[1757000147231,0.35,109450.0,109440.0,2.08896869]
[1757000147431,0.35,109450.0,109440.0,2.42992694]
[1757000147629,0.35,109450.0,109440.0,2.08792594]
[1757000147825,0.35,109450.0,109440.0,2.17928694]
[1757000148030,0.71359825,109450.0,109440.0,1.74692769]
[1757000148424,0.71359825,109450.0,109440.0,1.83828869]
[1757000148827,0.37264,109450.0,109440.0,1.91284869]
[1757000149227,0.37264,109450.0,109440.0,1.8214786]
[1757000150729,0.37264,109450.0,109440.0,1.8213186]
[1757000150936,0.37264,109450.0,109440.0,0.8393976]
[1757000151236,0.37264,109450.0,109440.0,1.8212386]
[1757000151529,0.37264,109450.0,109440.0,1.7298776]
[1757000151729,0.74783825,109450.0,109440.0,1.7298376]
[1757000151931,0.74783825,109450.0,109440.0,0.70256]
[1757000152131,0.74783825,109450.0,109440.0,1.59292]
[1757000152729,0.37264,109450.0,109440.0,1.59292]
[1757000152929,0.71359825,109450.0,109440.0,1.59292]
[1757000154922,0.71359825,109450.0,109440.0,1.51836]
[1757000155329,0.37264,109450.0,109440.0,1.51836]
[1757000155730,0.71359825,109450.0,109440.0,1.51836]
[1757000156431,0.71359825,109450.0,109440.0,1.25316]
[1757000157034,0.37264,109450.0,109440.0,1.25316]
[1757000158023,0.74783825,109450.0,109440.0,0.3628]
[1757000158335,0.74783825,109450.0,109440.0,1.25268]
[1757000160439,0.99783825,109450.0,109440.0,0.3628]
[1757000160734,0.99783825,109450.0,109440.0,1.25252]
[1757000165241,0.99783825,109450.0,109440.0,0.002]
[1757000165437,0.99783825,109450.0,109440.0,0.89136]
[1757000165742,0.99783825,109450.0,109440.0,0.89128]
[1757000168339,0.99783825,109450.0,109440.0,0.002]
[1757000168541,1.3387965,109450.0,109440.0,0.002]
[1757000168838,1.6995965,109450.0,109440.0,0.891]
[1757000169146,1.69863825,109450.0,109440.0,0.002]
[1757000169440,2.0395965,109450.0,109430.0,0.0001]
[1757000169641,1.0974865,109440.0,109430.0,0.88896]
[1757000169840,1.7574865,109440.0,109430.0,0.88896]
[1757000170945,1.7574865,109440.0,109430.0,0.88996]
[1757000171246,1.82905843,109440.0,109430.0,0.88996]
[1757000172746,1.82905843,109440.0,109430.0,0.88896]
[1757000176647,1.14714193,109440.0,109430.0,0.88896]
[1757000176947,1.82905843,109440.0,109430.0,0.88896]
[1757000178147,1.14714193,109440.0,109430.0,0.88896]
[1757000178347,1.82905843,109440.0,109430.0,0.88896]
[1757000179548,0.74572825,109440.0,109430.0,0.88896]
[1757000179748,0.74572825,109440.0,109430.0,1.24976]
[1757000179952,0.74572825,109440.0,109430.0,1.49976]
[1757000180946,0.40477,109440.0,109430.0,1.49976]
[1757000181143,0.74572825,109440.0,109430.0,1.49976]
[1757000182057,0.74572825,109440.0,109430.0,0.6108]
[1757000182252,1.0866865,109440.0,109430.0,1.4988]
[1757000182747,0.74572825,109440.0,109430.0,1.4988]
[1757000182951,1.0866865,109440.0,109430.0,1.4988]
[1757000183148,0.74572825,109440.0,109430.0,1.4988]
[1757000184153,1.0866865,109440.0,109430.0,1.4986]
[1757000184854,1.0866865,109440.0,109430.0,1.49856]
[1757000185449,1.0866865,109440.0,109430.0,0.6108]
[1757000185655,1.0866865,109440.0,109430.0,1.49852]
[1757000186357,1.0866865,109440.0,109430.0,1.49844]
[1757000186559,0.40477,109440.0,109430.0,1.49844]
[1757000186757,0.74572825,109440.0,109430.0,1.49844]
[1757000187352,1.0866865,109440.0,109430.0,1.49844]
[1757000188356,0.74572825,109440.0,109430.0,1.49844]
[1757000188547,0.40477,109440.0,109430.0,1.49844]
[1757000188750,0.74572825,109440.0,109430.0,1.49844]
[1757000188950,0.74572825,109440.0,109430.0,1.24844]
[1757000189155,0.40477,109440.0,109430.0,2.19596775]
[1757000189346,0.74572825,109440.0,109430.0,1.8550095]
[1757000189551,0.71148825,109440.0,109430.0,1.8550095]
[1757000189958,0.35,109440.0,109430.0,2.19596775]
[1757000190151,0.35,109440.0,109430.0,1.93076775]
[1757000190961,0.35,109440.0,109430.0,2.19596775]
[1757000191157,0.35,109440.0,109430.0,2.02214619]
[1757000191460,0.35,109440.0,109430.0,2.42525118]
[1757000191862,0.35,109440.0,109430.0,2.16005118]
[1757000192054,0.35,109440.0,109430.0,2.29485118]
[1757000192257,0.35,109440.0,109430.0,2.41065547]
[1757000192850,0.35,109440.0,109430.0,2.75161372]
[1757000193054,0.35,109440.0,109430.0,2.44397372]
[1757000193254,0.35,109440.0,109430.0,3.33189372]
[1757000193657,0.35,109440.0,109430.0,3.33089372]
[1757000193860,0.35,109440.0,109430.0,3.33281372]
[1757000195461,0.00013655,109450.0,109440.0,0.0913612]
[1757000195762,0.32013655,109450.0,109440.0,2.15831526]
[1757000196064,0.32013655,109450.0,109440.0,2.2496937]
[1757000196960,0.32013655,109450.0,109440.0,2.25906587]
[1757000197161,0.08013655,109450.0,109440.0,3.06006587]
[1757000197361,0.07013655,109450.0,109440.0,3.06006587]
[1757000197759,0.35013655,109450.0,109440.0,3.20370587]
[1757000198464,0.35013655,109450.0,109440.0,3.46990587]
[1757000198952,0.02013655,109450.0,109440.0,3.46990587]
[1757000199156,0.00013655,109450.0,109440.0,3.47190587]
[1757000199963,0.00013655,109450.0,109440.0,3.46990587]
[1757000200166,0.00013655,109450.0,109440.0,2.58426587]
[1757000200366,0.00013655,109450.0,109440.0,3.47038587]
[1757000200761,0.00013655,109450.0,109440.0,3.32674587]
[1757000200961,0.00013655,109450.0,109440.0,3.32874587]
[1757000201157,0.39642825,109500.0,109480.0,0.0913259]
[1757000201363,0.70642825,109500.0,109490.0,1.24676]
[1757000201971,0.95642825,109500.0,109490.0,1.24676]
[1757000202166,0.61547,109500.0,109490.0,1.24676]
[1757000202371,0.33379,109500.0,109490.0,1.67903775]
[1757000202673,0.32232873,109500.0,109490.0,1.67903775]
[1757000202863,0.32432873,109500.0,109490.0,2.38903775]
[1757000203371,0.32632873,109500.0,109490.0,2.38903775]
[1757000204265,0.34611873,109500.0,109490.0,2.29735825]
[1757000204466,0.34611873,109500.0,109490.0,1.9564]
[1757000204671,0.34611873,109500.0,109490.0,2.0477198]
[1757000204872,0.34611873,109500.0,109490.0,2.11967555]
[1757000205172,0.34611873,109500.0,109490.0,1.14275575]
[1757000205374,0.34611873,109500.0,109490.0,2.02827575]
[1757000205572,0.68272633,109500.0,109490.0,2.36876335]
[1757000205871,0.68472633,109500.0,109490.0,2.45864335]
[1757000206073,0.34411873,109500.0,109490.0,2.45864335]
[1757000206273,0.68372633,109500.0,109490.0,2.54996315]
[1757000207874,0.32232873,109500.0,109490.0,2.54996315]
[1757000208072,0.66293633,109500.0,109490.0,2.54996315]
[1757000208672,0.68372633,109500.0,109490.0,2.54996315]
[1757000208865,0.66293633,109500.0,109490.0,2.54996315]
[1757000209272,0.313,109500.0,109490.0,2.54996315]
[1757000210374,0.6536076,109500.0,109490.0,1.66456325]
[1757000210574,0.6745676,109500.0,109490.0,2.45808335]
[1757000211577,0.6745676,109500.0,109490.0,2.54940345]
[1757000212579,0.6745676,109500.0,109490.0,2.81460345]
[1757000214187,0.6745676,109500.0,109490.0,2.72300335]
[1757000214577,0.6745676,109500.0,109490.0,2.72280335]
[1757000214782,1.0151752,109500.0,109490.0,2.38219575]
[1757000215086,1.0151752,109500.0,109490.0,2.38215575]
[1757000215889,1.0151752,109500.0,109490.0,2.72276335]
[1757000216783,0.6745676,109500.0,109490.0,2.81408305]
[1757000217484,0.6745676,109500.0,109490.0,2.47347545]
[1757000217691,0.6745676,109500.0,109490.0,2.72276335]
[1757000217892,0.6745676,109500.0,109490.0,2.81408305]
[1757000219889,0.6745676,109500.0,109490.0,2.72276335]
[1757000220391,0.6745676,109500.0,109490.0,2.81408335]
[1757000221291,0.6745676,109500.0,109490.0,2.38215575]
[1757000221491,0.6745676,109500.0,109490.0,2.72276335]
[1757000222192,0.6745676,109500.0,109490.0,2.81408335]
[1757000223487,0.313,109500.0,109490.0,2.81408335]
[1757000223696,0.313,109500.0,109490.0,3.49601932]
[1757000224896,0.313,109500.0,109490.0,3.15541172]
[1757000225097,0.313,109500.0,109490.0,3.49601932]
[1757000226296,0.311,109500.0,109490.0,3.49601932]
[1757000226689,0.311,109500.0,109490.0,3.15541172]
[1757000227291,0.31,109500.0,109490.0,2.27109172]
[1757000227490,0.6715676,109500.0,109490.0,3.06293172]
[1757000227691,0.6715676,109500.0,109490.0,3.15405142]
[1757000227890,0.6715676,109500.0,109490.0,2.27109142]
[1757000228096,0.6715676,109500.0,109490.0,2.17977172]
[1757000228296,1.0121752,109500.0,109490.0,2.38071575]
[1757000228595,1.0121752,109500.0,109490.0,1.49783575]
[1757000228795,1.0131752,109500.0,109490.0,2.38067575]
[1757000229497,1.2980652,109500.0,109490.0,1.67059575]
[1757000229798,0.61885,109500.0,109490.0,1.67059575]
[1757000230096,1.3000652,109500.0,109490.0,1.67059575]
[1757000230488,1.3000652,109500.0,109490.0,1.40539575]
[1757000230689,0.9574576,109500.0,109490.0,1.40539575]
[1757000230898,0.9594576,109500.0,109490.0,1.83732335]
[1757000231099,0.9614576,109500.0,109490.0,1.83732335]
[1757000231601,0.9614576,109500.0,109490.0,1.74600335]
[1757000231799,0.9614576,109500.0,109490.0,0.52263575]
[1757000232001,0.9614576,109500.0,109490.0,1.74584335]
[1757000232593,1.3020652,109500.0,109490.0,0.52263575]
[1757000232896,1.3020652,109500.0,109490.0,1.31519575]
[1757000233898,2.3834728,109500.0,109490.0,0.07195575]
[1757000234091,2.3834728,109500.0,109490.0,0.88696]
[1757000234293,2.0034728,109500.0,109490.0,0.88684]
[1757000234490,2.3734728,109500.0,109490.0,0.86492]
[1757000234793,2.3234728,109500.0,109490.0,0.86492]
[1757000234988,2.0034728,109500.0,109490.0,0.86492]
[1757000235902,2.3734728,109500.0,109490.0,0.86492]
[1757000237392,2.3734728,109500.0,109490.0,0.85396]
[1757000237800,2.3734728,109500.0,109490.0,0.843]
[1757000238302,2.39930633,109500.0,109490.0,0.843]
[1757000239300,2.3734728,109500.0,109490.0,0.843]
[1757000239902,2.39948515,109500.0,109490.0,0.843]
[1757000241806,0.02075,109480.0,109470.0,1.52331759]
[1757000241998,1.7333728,109480.0,109470.0,2.40535759]
[1757000242199,1.7660528,109480.0,109470.0,0.88204]
[1757000243501,0.02075,109470.0,109460.0,0.07352443]
[1757000243704,0.05343,109460.0,109450.0,0.54584]
[1757000243898,1.0846452,109460.0,109450.0,1.42764]
[1757000245003,1.0846452,109460.0,109450.0,1.27524]
[1757000245502,1.09385396,109460.0,109450.0,1.27524]
[1757000245704,1.09385396,109460.0,109450.0,0.39344]
[1757000245908,0.05343,109450.0,109440.0,0.37218184]
[1757000246201,0.6840376,109450.0,109440.0,1.61466184]
[1757000246406,0.6830376,109450.0,109440.0,1.61466184]
[1757000246707,0.6820376,109450.0,109440.0,1.61466184]
[1757000247207,0.6820376,109450.0,109440.0,1.50386184]
[1757000247408,1.0226452,109450.0,109440.0,1.50578184]
[1757000247610,1.0226452,109450.0,109440.0,0.62418184]
[1757000247905,1.0226452,109450.0,109440.0,1.47314184]
[1757000248308,1.0226452,109450.0,109440.0,1.20794184]
[1757000249111,1.0226452,109450.0,109440.0,1.20994184]
[1757000252204,0.34143,109450.0,109440.0,1.20994184]
[1757000252405,0.6820376,109450.0,109440.0,1.20994184]
[1757000254909,1.0226452,109450.0,109440.0,0.03664]
[1757000255114,0.34143,109450.0,109440.0,0.88516]
[1757000255310,1.0226452,109450.0,109440.0,0.9178]
[1757000260114,0.29,109450.0,109440.0,2.05173679]
[1757000260311,0.29,109450.0,109440.0,2.57067027]
[1757000260507,0.29,109450.0,109440.0,1.88945507]
[1757000260712,0.29,109450.0,109440.0,2.70709289]
[1757000262003,0.2792,109450.0,109440.0,2.02587769]
[1757000262204,0.25905,109450.0,109440.0,2.70709289]
[1757000263010,0.25905,109450.0,109440.0,2.87045289]
[1757000263616,0.25905,109450.0,109440.0,2.8798235]
[1757000265412,0.25905,109450.0,109440.0,2.1986083]
[1757000265614,0.25905,109450.0,109440.0,3.2204311]
[1757000265918,0.25905,109450.0,109440.0,2.8798235]
[1757000266212,0.25905,109450.0,109440.0,3.1450235]
[1757000266621,0.25905,109450.0,109440.0,2.25449289]
[1757000266819,0.25905,109450.0,109440.0,2.00449289]
[1757000267015,0.25905,109450.0,109440.0,2.88481289]
[1757000267217,0.25905,109450.0,109440.0,2.00449289]
[1757000267518,0.25905,109450.0,109440.0,2.54439756]
[1757000270221,0.59992987,109450.0,109440.0,1.21192619]
[1757000270414,0.86973987,109450.0,109440.0,2.0005561]
[1757000271119,0.52886,109450.0,109440.0,2.0005561]
[1757000271516,0.52928216,109450.0,109440.0,2.0005561]
[1757000272024,0.53128216,109450.0,109440.0,1.7333561]
[1757000272326,0.53428216,109450.0,109440.0,1.8227179]
[1757000272520,0.53428216,109450.0,109440.0,2.07223597]
[1757000273418,0.56707216,109450.0,109440.0,0.8513561]
[1757000273726,0.56707216,109450.0,109440.0,1.7311161]
[1757000275229,0.53428216,109450.0,109440.0,1.8224776]
[1757000276119,0.53428216,109450.0,109440.0,1.7311161]
[1757000277418,0.53428216,109450.0,109440.0,1.8224775]
[1757000278218,0.51447216,109450.0,109440.0,2.16335737]
[1757000278719,0.26147216,109450.0,109440.0,2.16335737]
[1757000279121,0.26247216,109450.0,109440.0,2.16335737]
[1757000279819,0.26147216,109450.0,109440.0,2.16335737]